{"text_format":"1","workbook":"xlsx","n_sheets":2,"sheets":["Déclaration salarié_FORMULES","Déclaration d'un salarié_VIERGE"],"not_rendered":{"charts":0,"images":2,"macros":1,"external_links":0,"defined_names":2,"comments":0,"pivot_tables":0},"unopened":[],"bounds":{"document_bytes":16777216,"sheet_cells":100000,"rows_first":2000,"rows_last":500,"rows_between":2000,"halvings":0,"cell_chars":16384,"cell_head_chars":4096},"cells_cut":0,"cells_raw":0,"read":"whole","date_system":"1900"}

{"sheet":"Déclaration salarié_FORMULES","index":0,"n_rows":16,"n_cols":9,"rows_kept":16,"cut":false,"hidden":false,"merged":[[1,1,1,2],[8,0,9,0],[0,0,0,2],[7,1,7,2],[6,1,6,2],[5,1,5,2],[2,1,2,2],[3,1,3,2],[4,1,4,2]]}
["\nFormulaire de transmission des périodes de congé paternité",null,null,"Compteur"]
["Date de naissance de l'enfant "]
["Nombre d'enfants nés",null,null,{"$f":"IF(B3=\"\",\"\",IF(B3=1, 28, IF(B3>1, 35, 0)))","v":""}]
["Nom Prénom enfant né n°1"]
["Nom Prénom enfant né n°2"]
["N° de Sécurité Sociale du salarié",null,null,null,null,null,null,"1- Le nombre d'enfants nés en ligne 3, le nombre de jours de congés est automatiquement inscrit 28 ou 35"]
["nom du salarié",null,null,null,null,null,null,"2- Lorsque vous saisissez la date de début du congé employeur :"]
["prénom du salarié",null,null,null,null,null,null,null,"9la date de fin est automatiquement générée"]
["Congé employeur\n3 jours au  jour de la naissance ou du lendemain","date de début ","date de fin",null,null,null,null,null,"9la date de début de la période obligatoire est automatiquement générée"]
[null,null,{"$f":"IF(B10=\"\",\"\",B10+2)","v":""},{"$f":"IF(OR(B10=\"\",C10=\"\"),\"\",C10-B10+1)","v":""},null,null,null,"3- Vous devez seulement indiquer la date de fin du congé obligatoire."]
["Indemnisation Assurance maladie -Période 1  obligatoire \ndont 4 jours obligatoire",null,null,{"$f":"IF(OR(B11=\"\",C11=\"\"),\"\",C11-B11+1)","v":""},{"$f":"IF(D11<4,\"* Attention 4 jours minimum\",\"\")","v":""},null,null,"4- N'oubliez pas de transmettre le bulletin de naissance ou l'extrait d'acte de naissance."]
["Indemnisation Assurance maladie Période 2 non obligatoire\nsi fractionnement du congé ( 5 jours minimum)",null,null,{"$f":"IF(OR(B12=\"\",C12=\"\"),\"\",C12-B12+1)","v":""},{"$f":"IF(D12<5,\"* Attention 5 jours minimum\",\"\")","v":""},null,null,"5- Le congé paternité doit être pris à compter du jour de la naissance ou le lendemain. \n"]
["Indemnisation Assurance maladie période 3 non obligatoire\nsolde éventuel ",null,null,{"$f":"IF(OR(B13=\"\",C13=\"\"),\"\",C13-B13+1)","v":""},{"$f":"IF(B13=\"\",\"\",IF(D16>0,\"* La troisième période doit solder la totalité du congé\",\"\"))","v":""},null,null,"En cas de naissance le week-end le congé paternité débute au 1er jour ouvrable qui suit la naissance."]
["SOUS TOTAL employeur ",null,null,{"$f":"D10","v":""},null,null,null,"6- Le congé paternité peut débuter au lendemain d’une période "]
["SOUS Total CPAM ",null,null,{"$f":"IF(SUM(D11,D12,D13)=0,\"\",SUM(D11,D12,D13))","v":""},null,null,null,"de congés payés si la naissance est intervenue pendant celle-ci."]
["Reste à prendre ",null,null,{"$f":"IF(SUM(D14,D15)=0,\"\",D3-SUM(D14:D15))","v":""}]

{"sheet":"Déclaration d'un salarié_VIERGE","index":1,"n_rows":16,"n_cols":8,"rows_kept":16,"cut":false,"hidden":false,"merged":[[8,0,9,0],[0,0,0,2],[1,1,1,2],[2,1,2,2],[5,1,5,2],[6,1,6,2],[7,1,7,2],[3,1,3,2],[4,1,4,2]]}
["\nFormulaire de transmission des périodes de congé paternité",null,null,"Compteur"]
["Date de naissance de l'enfant "]
["Nombre d'enfants nés",null,null,{"$f":"IF(B3=\"\",\"\",IF(B3=1, 28, IF(B3>1, 35, 0)))","v":""}]
["Nom Prénom enfant né n°1"]
["Nom Prénom enfant né n°2"]
["N° de Sécurité Sociale du salarié",null,null,null,null,null,null,"1- le nombre d'enfants nés en ligne 3, le nombre de jours de congés est automatiquement inscrit 28 ou 35"]
["nom du salarié",null,null,null,null,null,null,"2 - N'oubliez pas de transmettre le bulletin de naissance ou l'extrait d'acte de naissance"]
["prénom du salarié",null,null,null,null,null,null,"3 - Respectez les modalités de calcul du congé"]
["Congé employeur\n3 jours au  jour de la naissance ou du lendemain","date de début ","date de fin"]
[null,null,null,{"$f":"IF(OR(B10=\"\",C10=\"\"),\"\",C10-B10+1)","v":""}]
["Indemnisation Assurance maladie -Période 1  obligatoire \ndont 4 jours obligatoire",null,null,{"$f":"IF(OR(B11=\"\",C11=\"\"),\"\",C11-B11+1)","v":""},{"$f":"IF(D11<4,\"* Attention 4 jours minimum\",\"\")","v":""}]
["Indemnisation Assurance maladie Période 2 non obligatoire\nsi fractionnement du congé ( 5 jours minimum)",null,null,{"$f":"IF(OR(B12=\"\",C12=\"\"),\"\",C12-B12+1)","v":""},{"$f":"IF(D12<5,\"* Attention 5 jours minimum\",\"\")","v":""}]
["Indemnisation Assurance maladie période 3 non obligatoire\nsolde éventuel ",null,null,{"$f":"IF(OR(B13=\"\",C13=\"\"),\"\",C13-B13+1)","v":""},{"$f":"IF(B13=\"\",\"\",IF(D16>0,\"* La troisième période doit solder la totalité du congé\",\"\"))","v":""}]
["SOUS TOTAL employeur ",null,null,{"$f":"D10","v":""}]
["SOUS Total CPAM ",null,null,{"$f":"IF(SUM(D11,D12,D13)=0,\"\",SUM(D11,D12,D13))","v":""}]
["Reste à prendre ",null,null,{"$f":"IF(SUM(D14,D15)=0,\"\",D3-SUM(D14:D15))","v":""}]